[Event "*** Titled Tuesday Blitz"]
[Site "Chess.com"]
[Date "2021.03.09"]
[Round "7"]
[White "Haykoooo0o"]
[Black "LuisFSiles"]
[Result "1-0"]
[WhiteElo "2482"]
[BlackElo "2297"]
[TimeControl "180+1"]
[EndTime "11:21:41 PST"]
[Termination "Haykoooo0o won by resignation"]

1. d4 {[%clk 0:03:00.9]} 1... Nf6 {[%clk 0:02:59.3]} 2. Nf3 {[%clk 0:03:01.3]}
2... g6 {[%clk 0:02:58.7]} 3. Bf4 {[%clk 0:03:01.2]} 3... Bg7 {[%clk 0:02:58.8]}
4. h3 {[%clk 0:03:01.7]} 4... O-O {[%clk 0:02:58.4]} 5. e3 {[%clk 0:03:02.3]}
5... d6 {[%clk 0:02:58.2]} 6. Be2 {[%clk 0:03:02.9]} 6... c5 {[%clk 0:02:53.9]}
7. c3 {[%clk 0:03:02.1]} 7... Nc6 {[%clk 0:02:52.9]} 8. O-O {[%clk 0:03:01.9]}
8... Be6 {[%clk 0:02:51.5]} 9. Nbd2 {[%clk 0:03:01.1]} 9... Qb6 {[%clk
0:02:50.7]} 10. Ng5 {[%clk 0:03:00.6]} 10... Qxb2 {[%clk 0:02:41.8]} 11. Nxe6
{[%clk 0:03:00.6]} 11... fxe6 {[%clk 0:02:41.6]} 12. Nc4 {[%clk 0:03:00.6]}
12... Qxc3 {[%clk 0:02:34]} 13. Rc1 {[%clk 0:02:58.9]} 13... Qb4 {[%clk
0:02:21.3]} 14. Rb1 {[%clk 0:02:58.7]} 14... Qc3 {[%clk 0:01:58]} 15. Rb3 {[%clk
0:02:58.5]} 15... cxd4 {[%clk 0:01:58.4]} 16. Rxc3 {[%clk 0:02:55.9]} 16... dxc3
{[%clk 0:01:59.3]} 17. Qb3 {[%clk 0:02:51.2]} 17... Nd5 {[%clk 0:01:47.1]} 18.
Qxb7 {[%clk 0:02:48.1]} 18... Nxf4 {[%clk 0:01:37.9]} 19. exf4 {[%clk
0:02:46.1]} 19... Nd4 {[%clk 0:01:37.9]} 20. Bg4 {[%clk 0:02:39.5]} 20... Rab8
{[%clk 0:01:26.9]} 21. Qxe7 {[%clk 0:02:38.1]} 21... c2 {[%clk 0:01:26.3]} 22.
Bxe6+ {[%clk 0:02:26.9]} 22... Kh8 {[%clk 0:01:26.1]} 23. Ne3 {[%clk 0:00:59.1]}
23... Rb1 {[%clk 0:00:45]} 24. Nxc2 {[%clk 0:00:51.4]} 24... Ne2+ {[%clk
0:00:44.7]} 25. Kh2 {[%clk 0:00:49]} 25... Rxf1 {[%clk 0:00:44.2]} 26. Bc4
{[%clk 0:00:44.6]} 26... Rxf2 {[%clk 0:00:35.1]} 27. Bxe2 {[%clk 0:00:44.7]}
27... R2xf4 {[%clk 0:00:35.3]} 28. Qxd6 {[%clk 0:00:37.1]} 28... Rf2 {[%clk
0:00:34.1]} 29. Qd3 {[%clk 0:00:32.3]} 29... Re8 {[%clk 0:00:26.3]} 30. Bf3
{[%clk 0:00:29.2]} 30... Rc8 {[%clk 0:00:16]} 31. Ne3 {[%clk 0:00:20.4]} 31...
Be5+ {[%clk 0:00:16.1]} 32. Kg1 {[%clk 0:00:19.6]} 32... Bg3 {[%clk 0:00:16.7]}
33. Nf1 {[%clk 0:00:15.8]} 33... Rc1 {[%clk 0:00:16.2]} 34. Qd4+ {[%clk
0:00:15.1]} 34... Kg8 {[%clk 0:00:16.1]} 35. Qxf2 {[%clk 0:00:13.3]} 35... Bxf2+
{[%clk 0:00:15.5]} 36. Kxf2 {[%clk 0:00:14.2]} 36... Rc2+ {[%clk 0:00:16.1]} 37.
Kg3 {[%clk 0:00:14.9]} 37... Rxa2 {[%clk 0:00:17]} 38. Bd5+ {[%clk 0:00:15.1]}
38... Kg7 {[%clk 0:00:17]} 39. Bxa2 {[%clk 0:00:15.7]} 1-0

[Event "*** Titled Tuesday Blitz"]
[Site "Chess.com"]
[Date "2021.03.09"]
[Round "7"]
[White "enriquebutti"]
[Black "anasta10"]
[Result "1-0"]
[WhiteElo "2235"]
[BlackElo "2458"]
[TimeControl "180+1"]
[EndTime "11:21:43 PST"]
[Termination "enriquebutti won by resignation"]

1. d4 {[%clk 0:02:58.6]} 1... Nf6 {[%clk 0:02:58.2]} 2. c4 {[%clk 0:02:56.3]}
2... g6 {[%clk 0:02:57.8]} 3. Nc3 {[%clk 0:02:55.4]} 3... d5 {[%clk 0:02:58.4]}
4. cxd5 {[%clk 0:02:53.6]} 4... Nxd5 {[%clk 0:02:59.3]} 5. e4 {[%clk 0:02:53]}
5... Nxc3 {[%clk 0:02:59.4]} 6. bxc3 {[%clk 0:02:52.7]} 6... Bg7 {[%clk
0:03:00.3]} 7. Bc4 {[%clk 0:02:51.3]} 7... O-O {[%clk 0:03:00.8]} 8. Ne2 {[%clk
0:02:50.7]} 8... c5 {[%clk 0:03:00.9]} 9. O-O {[%clk 0:02:49.1]} 9... Nc6 {[%clk
0:03:01.2]} 10. Be3 {[%clk 0:02:48.1]} 10... Qc7 {[%clk 0:03:00.8]} 11. Rc1
{[%clk 0:02:46.7]} 11... b6 {[%clk 0:02:59.9]} 12. f4 {[%clk 0:02:39.7]} 12...
Bb7 {[%clk 0:02:59.4]} 13. f5 {[%clk 0:02:38.3]} 13... Na5 {[%clk 0:02:56.4]}
14. Bd3 {[%clk 0:02:36.3]} 14... Rad8 {[%clk 0:02:50.8]} 15. Qd2 {[%clk
0:02:15.9]} 15... Qc8 {[%clk 0:02:35.4]} 16. Bh6 {[%clk 0:02:06.7]} 16... Qa8
{[%clk 0:02:35.6]} 17. Bxg7 {[%clk 0:02:00.1]} 17... Kxg7 {[%clk 0:02:36.5]} 18.
Qe3 {[%clk 0:01:59.3]} 18... Rc8 {[%clk 0:02:34.3]} 19. Ng3 {[%clk 0:01:37.8]}
19... cxd4 {[%clk 0:02:28.6]} 20. cxd4 {[%clk 0:01:36.9]} 20... Rxc1 {[%clk
0:02:28.7]} 21. Rxc1 {[%clk 0:01:35]} 21... Rc8 {[%clk 0:02:29.6]} 22. Rf1
{[%clk 0:01:22.8]} 22... Rc3 {[%clk 0:02:23.3]} 23. e5 {[%clk 0:01:13.1]} 23...
Kg8 {[%clk 0:01:22.8]} 24. e6 {[%clk 0:00:56.3]} 24... f6 {[%clk 0:00:59.4]} 25.
fxg6 {[%clk 0:00:43.4]} 25... Qf8 {[%clk 0:00:46.9]} 26. gxh7+ {[%clk 0:00:42]}
26... Kh8 {[%clk 0:00:47.3]} 27. Qd2 {[%clk 0:00:36.9]} 27... Ra3 {[%clk
0:00:41.3]} 28. Be4 {[%clk 0:00:34.1]} 28... Ba6 {[%clk 0:00:32.8]} 29. Rf4
{[%clk 0:00:29.6]} 29... Bc4 {[%clk 0:00:28.8]} 30. Rg4 {[%clk 0:00:27.7]} 30...
Bxe6 {[%clk 0:00:28.8]} 31. Bf5 {[%clk 0:00:26.7]} 31... Bf7 {[%clk 0:00:27.9]}
32. d5 {[%clk 0:00:23.2]} 32... Nb7 {[%clk 0:00:13.5]} 33. Be6 {[%clk
0:00:22.2]} 33... Kxh7 {[%clk 0:00:07.4]} 34. Qc2+ {[%clk 0:00:20.2]} 34... Kh8
{[%clk 0:00:06.7]} 35. Rh4+ {[%clk 0:00:18.1]} 1-0

[Event "*** Titled Tuesday Blitz"]
[Site "Chess.com"]
[Date "2021.03.09"]
[Round "7"]
[White "ENajer77"]
[Black "Chesspirate_Channel"]
[Result "1-0"]
[WhiteElo "2622"]
[BlackElo "2407"]
[TimeControl "180+1"]
[EndTime "11:21:44 PST"]
[Termination "ENajer77 won by resignation"]

1. d4 {[%clk 0:03:00.2]} 1... d5 {[%clk 0:02:58.5]} 2. c4 {[%clk 0:02:59.8]}
2... e5 {[%clk 0:02:58.8]} 3. dxe5 {[%clk 0:02:59.3]} 3... d4 {[%clk 0:02:59.7]}
4. Nf3 {[%clk 0:02:59.5]} 4... Nc6 {[%clk 0:03:00.6]} 5. a3 {[%clk 0:02:58.5]}
5... Bg4 {[%clk 0:03:00.9]} 6. Nbd2 {[%clk 0:02:56.6]} 6... Qd7 {[%clk
0:03:00.8]} 7. g3 {[%clk 0:02:46.9]} 7... O-O-O {[%clk 0:02:58.9]} 8. Bg2 {[%clk
0:02:47]} 8... Bh3 {[%clk 0:02:57.7]} 9. O-O {[%clk 0:02:46.6]} 9... h5 {[%clk
0:02:57.2]} 10. b4 {[%clk 0:02:44.7]} 10... f6 {[%clk 0:02:56.9]} 11. Ne4 {[%clk
0:02:17.5]} 11... h4 {[%clk 0:02:41.1]} 12. b5 {[%clk 0:01:56.1]} 12... Nxe5
{[%clk 0:02:27.9]} 13. Nxe5 {[%clk 0:01:54.4]} 13... fxe5 {[%clk 0:02:28.8]} 14.
Bxh3 {[%clk 0:01:34.7]} 14... Qxh3 {[%clk 0:02:27.7]} 15. Ng5 {[%clk 0:01:33.2]}
15... Qd7 {[%clk 0:02:27.5]} 16. Qd3 {[%clk 0:01:23.6]} 16... Nf6 {[%clk
0:02:19.1]} 17. Bd2 {[%clk 0:00:50.3]} 17... Re8 {[%clk 0:02:16.7]} 18. f3
{[%clk 0:00:44.8]} 18... hxg3 {[%clk 0:02:13.7]} 19. hxg3 {[%clk 0:00:45.7]}
19... Bc5 {[%clk 0:01:13.9]} 20. Kg2 {[%clk 0:00:42.6]} 20... e4 {[%clk
0:01:12.8]} 21. fxe4 {[%clk 0:00:41.4]} 21... Nxe4 {[%clk 0:01:13.2]} 22. Nxe4
{[%clk 0:00:39.3]} 22... Rxe4 {[%clk 0:01:09.2]} 23. Qxe4 {[%clk 0:00:36]} 23...
Qh3+ {[%clk 0:01:03.1]} 24. Kf3 {[%clk 0:00:21.7]} 24... Qh5+ {[%clk 0:00:54.6]}
25. Qg4+ {[%clk 0:00:20.9]} 25... Qxg4+ {[%clk 0:00:48.9]} 26. Kxg4 {[%clk
0:00:21.8]} 26... Re8 {[%clk 0:00:48.6]} 27. Rae1 {[%clk 0:00:21.4]} 27... Bxa3
{[%clk 0:00:47.4]} 28. Rf7 {[%clk 0:00:20.6]} 28... Bb2 {[%clk 0:00:47.3]} 29.
Bf4 {[%clk 0:00:20.2]} 29... d3 {[%clk 0:00:39.1]} 30. Rxc7+ {[%clk 0:00:19.9]}
30... Kd8 {[%clk 0:00:38.3]} 31. Rd1 {[%clk 0:00:18.9]} 31... Be5 {[%clk
0:00:36.4]} 32. Bxe5 {[%clk 0:00:15.6]} 32... Rxe5 {[%clk 0:00:36.2]} 33. Rxg7
{[%clk 0:00:15.7]} 33... Rxe2 {[%clk 0:00:17.6]} 34. Rxd3+ {[%clk 0:00:15.6]}
34... Kc8 {[%clk 0:00:18.1]} 35. Rf3 {[%clk 0:00:14.8]} 35... Re8 {[%clk
0:00:16]} 36. Rff7 {[%clk 0:00:15]} 36... b6 {[%clk 0:00:15.3]} 37. Rc7+ {[%clk
0:00:14.8]} 37... Kb8 {[%clk 0:00:15.8]} 38. Rb7+ {[%clk 0:00:15.3]} 38... Kc8
{[%clk 0:00:15.4]} 39. Rxa7 {[%clk 0:00:15.5]} 39... Re4+ {[%clk 0:00:14.9]} 40.
Kf5 {[%clk 0:00:15]} 40... Kb8 {[%clk 0:00:15.8]} 41. Kxe4 {[%clk 0:00:14.1]}
1-0

[Event "*** Titled Tuesday Blitz"]
[Site "Chess.com"]
[Date "2021.03.09"]
[Round "7"]
[White "PushingpawnsNYC"]
[Black "Tekushka"]
[Result "0-1"]
[WhiteElo "2302"]
[BlackElo "2457"]
[TimeControl "180+1"]
[EndTime "11:21:45 PST"]
[Termination "Tekushka won by checkmate"]

1. e4 {[%clk 0:03:00.9]} 1... e6 {[%clk 0:02:59.6]} 2. d4 {[%clk 0:03:00.2]}
2... d5 {[%clk 0:02:59.9]} 3. Bd3 {[%clk 0:02:59.7]} 3... dxe4 {[%clk
0:02:58.8]} 4. Bxe4 {[%clk 0:02:59.3]} 4... Nf6 {[%clk 0:02:59.2]} 5. Bf3 {[%clk
0:02:59.7]} 5... c5 {[%clk 0:02:59.7]} 6. Ne2 {[%clk 0:02:59.7]} 6... Nc6 {[%clk
0:02:57.6]} 7. Be3 {[%clk 0:02:58.8]} 7... cxd4 {[%clk 0:02:57.7]} 8. Nxd4
{[%clk 0:02:58.1]} 8... Ne5 {[%clk 0:02:58.3]} 9. O-O {[%clk 0:02:57.8]} 9... a6
{[%clk 0:02:53.7]} 10. Nc3 {[%clk 0:02:57.4]} 10... Nc4 {[%clk 0:02:30.9]} 11.
Bc1 {[%clk 0:02:39.9]} 11... Bc5 {[%clk 0:02:29.7]} 12. Nb3 {[%clk 0:02:38.9]}
12... Qxd1 {[%clk 0:02:15.7]} 13. Rxd1 {[%clk 0:02:37.6]} 13... Ba7 {[%clk
0:02:12.4]} 14. Be2 {[%clk 0:02:29.3]} 14... Ne5 {[%clk 0:02:02.1]} 15. h3
{[%clk 0:02:24.2]} 15... Bd7 {[%clk 0:01:59.5]} 16. Bf4 {[%clk 0:02:22.6]} 16...
Ng6 {[%clk 0:01:57.8]} 17. Bd6 {[%clk 0:02:18.2]} 17... O-O-O {[%clk 0:01:52.1]}
18. Nc5 {[%clk 0:02:11.3]} 18... Bc6 {[%clk 0:01:49.8]} 19. b4 {[%clk
0:02:08.7]} 19... Nd5 {[%clk 0:01:42.1]} 20. Nxd5 {[%clk 0:02:05.5]} 20... Bxd5
{[%clk 0:01:41.2]} 21. Bg3 {[%clk 0:01:54.1]} 21... Bxc5 {[%clk 0:01:37.2]} 22.
bxc5 {[%clk 0:01:53.4]} 22... e5 {[%clk 0:01:33.6]} 23. Bg4+ {[%clk 0:01:43.5]}
23... Kc7 {[%clk 0:01:31]} 24. Bf5 {[%clk 0:01:36.8]} 24... f6 {[%clk
0:01:28.8]} 25. a4 {[%clk 0:01:32.6]} 25... Ne7 {[%clk 0:01:25.7]} 26. Bg4
{[%clk 0:01:23.3]} 26... g5 {[%clk 0:01:24.4]} 27. h4 {[%clk 0:01:08.2]} 27...
h5 {[%clk 0:01:15.7]} 28. Be2 {[%clk 0:01:06.5]} 28... g4 {[%clk 0:01:14]} 29.
c4 {[%clk 0:01:03.5]} 29... Bc6 {[%clk 0:01:12.5]} 30. f4 {[%clk 0:00:58.6]}
30... Nf5 {[%clk 0:01:03.4]} 31. Kf2 {[%clk 0:00:54.5]} 31... e4 {[%clk
0:00:49.3]} 32. Ra3 {[%clk 0:00:31.8]} 32... Rxd1 {[%clk 0:00:39.1]} 33. Bxd1
{[%clk 0:00:30.4]} 33... e3+ {[%clk 0:00:27.2]} 34. Rxe3 {[%clk 0:00:25.9]}
34... Nxe3 {[%clk 0:00:27.3]} 35. f5+ {[%clk 0:00:24.9]} 35... Kd7 {[%clk
0:00:23.3]} 36. Kxe3 {[%clk 0:00:24.5]} 36... Bxg2 {[%clk 0:00:22.9]} 37. a5
{[%clk 0:00:21.5]} 37... Bc6 {[%clk 0:00:22.3]} 38. Kf4 {[%clk 0:00:16.3]} 38...
Re8 {[%clk 0:00:21.6]} 39. Bc2 {[%clk 0:00:13.6]} 39... Re2 {[%clk 0:00:20.9]}
40. Bd3 {[%clk 0:00:13.9]} 40... Rd2 {[%clk 0:00:19.2]} 41. Bb1 {[%clk
0:00:13.9]} 41... Rd4+ {[%clk 0:00:18.3]} 42. Ke3 {[%clk 0:00:13.2]} 42... Rxc4
{[%clk 0:00:18.1]} 43. Ba2 {[%clk 0:00:11.3]} 43... Rc3+ {[%clk 0:00:17.9]} 44.
Kf4 {[%clk 0:00:11.4]} 44... Rf3# {[%clk 0:00:17.6]} 0-1

[Event "*** Titled Tuesday Blitz"]
[Site "Chess.com"]
[Date "2021.03.09"]
[Round "7"]
[White "JimmmyZhang"]
[Black "Bigfish1995"]
[Result "1-0"]
[WhiteElo "2474"]
[BlackElo "3061"]
[TimeControl "180+1"]
[EndTime "11:21:46 PST"]
[Termination "JimmmyZhang won on time"]

1. Nf3 {[%clk 0:03:00.8]} 1... h6 {[%clk 0:02:50.2]} 2. e4 {[%clk 0:02:56.6]}
2... g5 {[%clk 0:02:49.7]} 3. d3 {[%clk 0:02:52.2]} 3... Bg7 {[%clk 0:02:49.2]}
4. Nc3 {[%clk 0:02:51.5]} 4... d6 {[%clk 0:02:45.1]} 5. Be2 {[%clk 0:02:46.9]}
5... c5 {[%clk 0:02:44.2]} 6. Be3 {[%clk 0:02:41.9]} 6... Nc6 {[%clk 0:02:43.3]}
7. O-O {[%clk 0:02:31.8]} 7... e5 {[%clk 0:02:26.6]} 8. Nd2 {[%clk 0:02:30.7]}
8... Nge7 {[%clk 0:02:24.4]} 9. Nd5 {[%clk 0:02:28.1]} 9... Nxd5 {[%clk
0:02:22.8]} 10. exd5 {[%clk 0:02:27.7]} 10... Ne7 {[%clk 0:02:21.9]} 11. c4
{[%clk 0:02:27.3]} 11... O-O {[%clk 0:02:20.7]} 12. b4 {[%clk 0:02:25.3]} 12...
cxb4 {[%clk 0:02:09.2]} 13. a3 {[%clk 0:02:24.8]} 13... bxa3 {[%clk 0:02:05.5]}
14. Rxa3 {[%clk 0:02:25.2]} 14... b6 {[%clk 0:02:03.1]} 15. Qb3 {[%clk
0:02:24.5]} 15... Bd7 {[%clk 0:01:55.5]} 16. Rfa1 {[%clk 0:02:24.3]} 16... Nc8
{[%clk 0:01:55.1]} 17. g4 {[%clk 0:02:07.9]} 17... f5 {[%clk 0:01:32.6]} 18.
gxf5 {[%clk 0:02:07.5]} 18... Bxf5 {[%clk 0:01:32.8]} 19. Ne4 {[%clk 0:02:08.2]}
19... Rb8 {[%clk 0:01:31.6]} 20. Qb5 {[%clk 0:01:55.1]} 20... Rb7 {[%clk
0:01:22.2]} 21. Bh5 {[%clk 0:01:49.7]} 21... Rc7 {[%clk 0:01:12.9]} 22. f3
{[%clk 0:01:44.4]} 22... Bd7 {[%clk 0:01:06.7]} 23. Qb4 {[%clk 0:01:35.5]} 23...
Qe7 {[%clk 0:01:04.2]} 24. R3a2 {[%clk 0:01:26.9]} 24... Kh8 {[%clk 0:01:03.8]}
25. Rg2 {[%clk 0:01:15.8]} 25... Bh3 {[%clk 0:01:01.4]} 26. Rg3 {[%clk
0:01:15.8]} 26... Bf5 {[%clk 0:01:01.6]} 27. Rg2 {[%clk 0:01:11.9]} 27... Qd7
{[%clk 0:00:57.6]} 28. h4 {[%clk 0:00:52.5]} 28... gxh4 {[%clk 0:00:52.3]} 29.
Kh2 {[%clk 0:00:52.2]} 29... Bh3 {[%clk 0:00:48.5]} 30. Bg4 {[%clk 0:00:48.7]}
30... Bxg4 {[%clk 0:00:48]} 31. fxg4 {[%clk 0:00:46.2]} 31... Rf3 {[%clk
0:00:45]} 32. Qd2 {[%clk 0:00:41.3]} 32... Kh7 {[%clk 0:00:34.3]} 33. Rag1
{[%clk 0:00:33.4]} 33... Qf7 {[%clk 0:00:31.6]} 34. g5 {[%clk 0:00:29.8]} 34...
Qf5 {[%clk 0:00:31.4]} 35. Rg4 {[%clk 0:00:24.5]} 35... h5 {[%clk 0:00:26.1]}
36. Rxh4 {[%clk 0:00:24.7]} 36... Qg6 {[%clk 0:00:14.9]} 37. Qe2 {[%clk
0:00:24.3]} 37... Qf5 {[%clk 0:00:01.9]} 38. Ng3 {[%clk 0:00:14.9]} 1-0

[Event "*** Titled Tuesday Blitz"]
[Site "Chess.com"]
[Date "2021.03.09"]
[Round "7"]
[White "StockholmMissile"]
[Black "dusanacns"]
[Result "0-1"]
[WhiteElo "2569"]
[BlackElo "2729"]
[TimeControl "180+1"]
[EndTime "11:21:46 PST"]
[Termination "dusanacns won by resignation"]

1. d4 {[%clk 0:03:00.9]} 1... g6 {[%clk 0:03:00.2]} 2. e4 {[%clk 0:03:00.3]}
2... Bg7 {[%clk 0:03:00.5]} 3. Nf3 {[%clk 0:03:00.5]} 3... c6 {[%clk 0:03:00.8]}
4. Be2 {[%clk 0:02:54.1]} 4... d5 {[%clk 0:02:59.8]} 5. exd5 {[%clk 0:02:51.4]}
5... cxd5 {[%clk 0:02:59.5]} 6. O-O {[%clk 0:02:51.5]} 6... Nc6 {[%clk
0:02:54.2]} 7. c3 {[%clk 0:02:50.8]} 7... Nf6 {[%clk 0:02:52]} 8. Bf4 {[%clk
0:02:49.9]} 8... O-O {[%clk 0:02:52.3]} 9. Nbd2 {[%clk 0:02:48.6]} 9... Bf5
{[%clk 0:02:52.4]} 10. Re1 {[%clk 0:02:48.1]} 10... Ne4 {[%clk 0:02:51.8]} 11.
Bf1 {[%clk 0:02:40.7]} 11... h6 {[%clk 0:02:50.7]} 12. Nxe4 {[%clk 0:02:39.5]}
12... Bxe4 {[%clk 0:02:50.1]} 13. Bd3 {[%clk 0:02:36.4]} 13... Bxd3 {[%clk
0:02:44.5]} 14. Qxd3 {[%clk 0:02:37.3]} 14... Rc8 {[%clk 0:02:42.7]} 15. Re2
{[%clk 0:02:34.6]} 15... e6 {[%clk 0:02:40.8]} 16. Qd2 {[%clk 0:02:30.3]} 16...
Kh7 {[%clk 0:02:40.1]} 17. Ne5 {[%clk 0:02:21.8]} 17... b5 {[%clk 0:02:31.9]}
18. a3 {[%clk 0:01:44.5]} 18... Ne7 {[%clk 0:02:19.1]} 19. h4 {[%clk 0:01:41.2]}
19... Nf5 {[%clk 0:02:17.3]} 20. h5 {[%clk 0:01:40]} 20... g5 {[%clk 0:02:16.6]}
21. Bh2 {[%clk 0:01:39.5]} 21... Nd6 {[%clk 0:02:16.1]} 22. Nd3 {[%clk
0:01:24.3]} 22... Ne4 {[%clk 0:02:00.7]} 23. Qc2 {[%clk 0:01:23.7]} 23... Kg8
{[%clk 0:01:59.1]} 24. Be5 {[%clk 0:01:15.9]} 24... f6 {[%clk 0:01:45]} 25. Bh2
{[%clk 0:01:15]} 25... f5 {[%clk 0:01:20.5]} 26. f3 {[%clk 0:01:10.9]} 26...
Bxd4+ {[%clk 0:01:09.9]} 27. Kh1 {[%clk 0:01:04.4]} 27... Nf6 {[%clk 0:01:09.8]}
28. Rxe6 {[%clk 0:01:01.5]} 28... Rf7 {[%clk 0:00:46.7]} 29. Nb4 {[%clk
0:00:49.8]} 29... Nxh5 {[%clk 0:00:39.6]} 30. Qb3 {[%clk 0:00:44.5]} 30... Bg7
{[%clk 0:00:37.5]} 31. Nxd5 {[%clk 0:00:43.7]} 31... Kh8 {[%clk 0:00:34.7]} 32.
Rae1 {[%clk 0:00:39.4]} 32... g4 {[%clk 0:00:32.7]} 33. Qxb5 {[%clk 0:00:32.8]}
33... Qh4 {[%clk 0:00:25.7]} 34. fxg4 {[%clk 0:00:21]} 34... Ng3+ {[%clk
0:00:17.8]} 35. Kg1 {[%clk 0:00:20.8]} 35... Ne4 {[%clk 0:00:18.7]} 36. R1xe4
{[%clk 0:00:10.5]} 36... fxe4 {[%clk 0:00:19.6]} 37. Re8+ {[%clk 0:00:10.8]}
37... Rxe8 {[%clk 0:00:18.9]} 38. Qxe8+ {[%clk 0:00:11.7]} 38... Rf8 {[%clk
0:00:19.2]} 39. Qxe4 {[%clk 0:00:12.2]} 39... Qf2+ {[%clk 0:00:18.8]} 40. Kh1
{[%clk 0:00:12.8]} 40... Qxb2 {[%clk 0:00:18.5]} 41. Nf4 {[%clk 0:00:11]} 41...
Qc1+ {[%clk 0:00:17.9]} 42. Bg1 {[%clk 0:00:10.4]} 42... Qxf4 {[%clk 0:00:17.9]}
0-1

[Event "*** Titled Tuesday Blitz"]
[Site "Chess.com"]
[Date "2021.03.09"]
[Round "7"]
[White "Ekose"]
[Black "TeukkaSalama"]
[Result "1-0"]
[WhiteElo "2523"]
[BlackElo "2366"]
[TimeControl "180+1"]
[EndTime "11:21:46 PST"]
[Termination "Ekose won by resignation"]

1. d4 {[%clk 0:02:56.8]} 1... e6 {[%clk 0:02:59.5]} 2. Nf3 {[%clk 0:02:56.4]}
2... f5 {[%clk 0:02:59.5]} 3. g3 {[%clk 0:02:55.3]} 3... Nf6 {[%clk 0:02:59.7]}
4. Bg2 {[%clk 0:02:55.7]} 4... d5 {[%clk 0:03:00.3]} 5. O-O {[%clk 0:02:56]}
5... Bd6 {[%clk 0:03:00.5]} 6. c4 {[%clk 0:02:56.1]} 6... c6 {[%clk 0:03:00.9]}
7. Qc2 {[%clk 0:02:56.4]} 7... O-O {[%clk 0:03:00.1]} 8. b3 {[%clk 0:02:56.4]}
8... Qe7 {[%clk 0:02:59.6]} 9. a4 {[%clk 0:02:55.7]} 9... a5 {[%clk 0:02:59.3]}
10. Ba3 {[%clk 0:02:55]} 10... Bxa3 {[%clk 0:02:58.9]} 11. Nxa3 {[%clk
0:02:55.4]} 11... Na6 {[%clk 0:02:52.5]} 12. Ne5 {[%clk 0:02:53.8]} 12... Nb4
{[%clk 0:02:51.3]} 13. Qb2 {[%clk 0:02:47.2]} 13... b6 {[%clk 0:02:47.8]} 14.
Nc2 {[%clk 0:02:45.3]} 14... Bb7 {[%clk 0:02:41.3]} 15. Nxb4 {[%clk 0:02:42.7]}
15... axb4 {[%clk 0:02:40.1]} 16. Rac1 {[%clk 0:02:38.4]} 16... Ne4 {[%clk
0:02:27.6]} 17. Bxe4 {[%clk 0:02:21.4]} 17... fxe4 {[%clk 0:02:27.2]} 18. c5
{[%clk 0:02:21.3]} 18... bxc5 {[%clk 0:02:14.5]} 19. Rxc5 {[%clk 0:02:20.7]}
19... e3 {[%clk 0:02:10.6]} 20. f3 {[%clk 0:02:17.6]} 20... Qg5 {[%clk
0:01:14.7]} 21. Kg2 {[%clk 0:02:08.1]} 21... Rf6 {[%clk 0:01:11.3]} 22. Qc1
{[%clk 0:01:41]} 22... h5 {[%clk 0:00:59.7]} 23. h4 {[%clk 0:01:35.8]} 23... Qh6
{[%clk 0:00:50.9]} 24. f4 {[%clk 0:01:32.9]} 24... Qh7 {[%clk 0:00:36.6]} 25.
Qxe3 {[%clk 0:01:29.9]} 25... Qf5 {[%clk 0:00:18.7]} 26. Qd3 {[%clk 0:01:17.5]}
26... Ba6 {[%clk 0:00:13.4]} 27. Qxf5 {[%clk 0:01:16.8]} 27... exf5 {[%clk
0:00:13.3]} 28. Kf2 {[%clk 0:01:13.8]} 28... Re8 {[%clk 0:00:10.7]} 29. Rfc1
{[%clk 0:01:12.7]} 29... Bb7 {[%clk 0:00:07.5]} 30. e3 {[%clk 0:01:09.8]} 30...
Kf8 {[%clk 0:00:06.9]} 31. Nd7+ {[%clk 0:01:08.2]} 31... Ke7 {[%clk 0:00:07.2]}
32. Nxf6 {[%clk 0:01:08.8]} 32... Kxf6 {[%clk 0:00:07.2]} 33. Rxc6+ {[%clk
0:01:08.9]} 33... Bxc6 {[%clk 0:00:07.6]} 34. Rxc6+ {[%clk 0:01:09.1]} 34... Ke7
{[%clk 0:00:08.2]} 35. Rb6 {[%clk 0:01:06.8]} 35... Rc8 {[%clk 0:00:07.9]} 36.
Rxb4 {[%clk 0:01:06.5]} 36... Rc2+ {[%clk 0:00:07.4]} 37. Kf3 {[%clk 0:01:06.9]}
37... Ra2 {[%clk 0:00:07.5]} 38. Rb7+ {[%clk 0:01:05.3]} 38... Kf6 {[%clk
0:00:07.7]} 39. Rb6+ {[%clk 0:01:04.8]} 39... Ke7 {[%clk 0:00:07.4]} 40. Ra6
{[%clk 0:01:04.1]} 40... Ra3 {[%clk 0:00:07.2]} 41. b4 {[%clk 0:01:03.1]} 41...
Kd7 {[%clk 0:00:06.9]} 42. b5 {[%clk 0:01:03.4]} 42... Kc7 {[%clk 0:00:05.9]}
43. Ra7+ {[%clk 0:00:48.1]} 43... Kb6 {[%clk 0:00:05.8]} 44. Rxg7 {[%clk
0:00:48.1]} 44... Rxa4 {[%clk 0:00:06.1]} 45. Rd7 {[%clk 0:00:45.7]} 45... Kxb5
{[%clk 0:00:04.1]} 46. Rxd5+ {[%clk 0:00:45.5]} 46... Kc4 {[%clk 0:00:04.7]} 47.
Rxf5 {[%clk 0:00:45.5]} 47... Kd3 {[%clk 0:00:04.9]} 48. Rxh5 {[%clk 0:00:44.7]}
48... Ra1 {[%clk 0:00:04.7]} 49. Re5 {[%clk 0:00:43.8]} 49... Rf1+ {[%clk
0:00:03.5]} 50. Kg4 {[%clk 0:00:44]} 1-0